bitfinex-derivatives/quotes_SOLF0:USTF0_20250227
["timestamp","ask_amount","ask_price","bid_price","bid_amount"]
[1740693178740,1.9357,137.36,137.31,7.2918]
[1740693179040,2.0048,137.41,137.27,1.9877]
[1740693179238,2.0048,137.41,137.27,118.76998972]
[1740693179439,2.0048,137.41,137.29,14.5862]
[1740693179638,9.2917,137.41,137.36,7.2892]
[1740693179839,0.04710181,137.36,137.34,0.04685879]
[1740693180035,2.0048,137.41,137.29,14.5862]
[1740693180240,2.0048,137.41,137.37,7.2885]
[1740693180537,0.05110954,137.4,137.37,7.2885]
[1740693180745,0.05110954,137.4,137.38,0.04867003]
[1740693180938,2.0048,137.41,137.29,14.5862]
[1740693181336,2.0048,137.41,137.35,7.2897]
[1740693181838,2.0048,137.41,137.3,14.5852]
[1740693182043,0.04880302,137.39,137.37,0.05154767]
[1740693182242,0.04880302,137.39,137.3,14.5852]
[1740693182545,2.0048,137.41,137.38,7.2881]
[1740693182939,2.05664895,137.41,137.3,14.5852]
[1740693183140,2.0048,137.41,137.39,7.2876]
[1740693183438,2.0048,137.41,137.39,7.34005907]
[1740693183639,2.05758177,137.41,137.39,7.34005907]
[1740693183944,3.95838177,137.41,137.4,7.2873]
[1740693184140,3.95838177,137.41,137.39,0.05245907]
[1740693184541,3.95838177,137.41,137.4,7.2873]
[1740693185146,3.95838177,137.41,137.39,0.05245907]
[1740693185445,3.95838177,137.41,137.39,7.34005907]
[1740693185842,3.95838177,137.41,137.27,140.65178972]
[1740693185843,3.95838177,137.41,137.27,118.76998972]
[1740693186144,3.9056,137.41,137.27,130.80998972]
[1740693186548,98.81901305,137.48,137.28,1.45687645]
[1740693186845,3.8659,137.47,137.28,118.23916617]
[1740693187045,0.0472987,137.39,137.38,7.2883]
[1740693187247,3.8659,137.47,137.29,116.78228972]
[1740693187443,0.05254826,137.4,137.37,0.05243039]
[1740693187651,7.285,137.45,137.4,7.2871]
[1740693188043,0.04952606,137.44,137.4,7.2871]
[1740693188247,0.04952606,137.44,137.41,0.05357635]
[1740693190741,7.286,137.43,137.41,0.05357635]
[1740693191241,7.2877,137.4,137.31,0.2559]
[1740693191651,3.8452,137.42,137.31,0.2559]
[1740693191945,1.9058,137.43,137.3,118.80598972]
[1740693192146,1.9058,137.43,137.31,0.2559]
[1740693192444,7.215e-05,137.38,137.37,7.2889]
[1740693192651,7.215e-05,137.38,137.31,0.2559]
[1740693192652,7.2853,137.44,137.31,0.2559]
[1740693192841,7.2853,137.44,137.31,117.03818972]
[1740693193147,7.2858,137.43,137.38,7.2879]
[1740693193547,0.05171782,137.42,137.39,0.05274099]
[1740693194546,0.05171782,137.42,137.41,7.2868]
[1740693195750,11.1281,137.49,137.44,7.2851]
[1740693196950,0.05519079,137.48,137.45,0.05396021]
[1740693198453,7.33859079,137.48,137.45,0.05396021]
[1740693198658,0.05519079,137.48,137.45,0.05396021]
[1740693199352,0.05519079,137.48,137.46,7.2839]
[1740693200053,0.05519079,137.48,137.47,7.2836]
[1740693201554,0.05519079,137.48,137.46,7.2838]
[1740693202254,0.05519079,137.48,137.45,0.05396021]
[1740693202457,0.05519079,137.48,137.45,7.33816021]
[1740693204056,0.05519079,137.48,137.46,7.2838]
[1740693207456,0.05519079,137.48,137.45,0.05396021]
[1740693207757,7.33829079,137.48,137.45,7.33836021]
[1740693208056,0.05519079,137.48,137.45,7.33836021]
[1740693209059,7.33839079,137.48,137.45,7.33836021]
[1740693210764,7.2841,137.46,137.45,0.05396021]
[1740693210964,0.05519079,137.48,137.42,7.2859]
[1740693211263,7.2844,137.46,137.43,7.2856]
[1740693212161,7.33868413,137.46,137.43,7.33278504]
[1740693212463,0.05428413,137.46,137.43,7.33278504]
[1740693212658,7.285,137.45,137.43,0.04718504]
[1740693212859,0.05428413,137.46,137.34,76.89537703]
[1740693213066,2.0163,137.44,137.3,2.3806]
[1740693213256,7.2869,137.41,137.37,7.2885]
[1740693213764,1.882,137.43,137.3,2.3806]
[1740693213969,7.34262994,137.4,137.38,0.0470061]
[1740693214165,7.34262994,137.4,137.3,2.3806]
[1740693214368,9.1677,137.43,137.38,0.05121554]
[1740693214666,2.0163,137.44,137.39,0.04942986]
[1740693214965,0.04948613,137.42,137.4,7.287]
[1740693215160,2.0163,137.44,137.4,0.04598597]
[1740693215363,0.05104899,137.42,137.4,0.04598597]
[1740693219366,0.05104899,137.42,137.41,7.2868]
[1740693219758,43.94641723,137.48,137.4,0.04598597]
[1740693219959,43.94641723,137.48,137.46,7.284]
[1740693220160,43.94641723,137.48,137.37,15.0891]
[1740693220365,7.2836,137.47,137.43,7.2854]
[1740693220563,43.94641723,137.48,137.37,15.0891]
[1740693220963,0.04670595,137.44,137.43,7.2855]
[1740693221159,43.94641723,137.48,137.37,15.0891]
[1740693221363,0.04680451,137.45,137.42,0.05463272]
[1740693222870,0.04680451,137.45,137.42,7.34083272]
[1740693223570,0.04680451,137.45,137.42,0.05463272]
[1740693224469,7.2854,137.44,137.42,0.05463272]
[1740693225872,0.04680451,137.45,137.42,0.05463272]
[1740693227177,0.04680451,137.45,137.42,7.34063272]
[1740693227574,0.04680451,137.45,137.42,0.05463272]
[1740693228279,0.04680451,137.45,137.42,7.34073272]
[1740693228578,7.2857,137.43,137.42,0.05463272]
[1740693229173,0.04680451,137.45,137.31,0.2516]
[1740693229375,1.9833,137.45,137.31,2.1464]
[1740693229879,1.9833,137.45,137.36,7.2891]
[1740693230071,1.9833,137.45,137.31,2.1464]
[1740693230271,0.05016897,137.42,137.39,0.05465901]
[1740693230472,0.05016897,137.42,137.34,7.2901]
[1740693230875,7.2884,137.38,137.34,7.2901]
[1740693231673,0.05259953,137.37,137.35,0.05382023]
[1740693231878,0.05259953,137.37,137.35,7.34372023]
[1740693233182,0.05259953,137.37,137.36,7.2894]
[1740693233480,0.05259953,137.37,137.35,0.05382023]
[1740693233681,0.05259953,137.37,137.35,7.34352023]
[1740693234175,0.05259953,137.37,137.35,0.05382023]
[1740693234385,0.05259953,137.37,137.29,1.45677034]
[1740693234677,7.2902,137.35,137.29,1.45677034]
[1740693234984,7.2902,137.35,137.31,7.2915]
[1740693235181,2.0428,137.41,137.27,0.2523]
[1740693235674,0.048763,137.35,137.33,0.04495078]
[1740693235886,12.02,137.39,137.26,78.79853704]
[1740693236076,7.2904,137.35,137.29,7.2929]
[1740693236881,2.0242,137.34,137.29,7.2929]
[1740693237076,0.04705532,137.33,137.3,7.2926]
[1740693237679,0.04705532,137.33,137.26,78.79853704]
[1740693237881,0.04705532,137.33,137.29,7.2929]
[1740693238180,0.04705532,137.33,137.26,78.79853704]
[1740693238682,0.04705532,137.33,137.3,7.2923]
[1740693239386,0.04705532,137.33,137.26,78.79853704]
[1740693239581,0.04705532,137.33,137.29,7.2927]
[1740693239977,0.04705532,137.33,137.3,7.2926]
[1740693241188,0.04705532,137.33,137.28,7.2936]
[1740693241479,4.0358,137.34,137.28,7.2936]
[1740693241786,0.04999875,137.32,137.23,0.2557]
[1740693241985,4.0358,137.34,137.23,0.2557]
[1740693242182,4.0358,137.34,137.31,7.292]
[1740693242377,4.08317976,137.34,137.31,7.292]
[1740693242783,4.08317976,137.34,137.24,1.8918]
[1740693243084,0.04686598,137.3,137.24,1.8918]
[1740693243585,0.04686598,137.3,137.21,138.67378972]
[1740693243786,7.2918,137.32,137.27,7.2939]
[1740693244283,0.05265496,137.31,137.27,7.2939]
[1740693244685,7.34475496,137.31,137.26,7.2945]
[1740693244887,7.2921,137.31,137.26,7.2945]
[1740693245088,0.04810769,137.3,137.26,7.2945]
[1740693245882,7.34070769,137.3,137.26,7.2945]
[1740693247884,7.2934,137.29,137.25,7.2951]
[1740693248081,4.0358,137.34,137.2,1.8918]
[1740693248385,0.05373391,137.28,137.27,7.2942]
[1740693248579,4.0358,137.34,137.2,1.8918]
[1740693248787,0.04723625,137.29,137.2,1.8918]
[1740693248987,7.2926,137.3,137.26,7.2944]
[1740693249183,4.0358,137.34,137.26,7.2944]
[1740693249486,0.05450639,137.29,137.26,7.2944]
[1740693249681,0.05450639,137.29,137.2,1.8918]
[1740693249885,7.2935,137.29,137.25,7.295]
[1740693250080,0.0553953,137.26,137.25,7.295]
[1740693250886,0.0553953,137.26,137.18,0.4717]
[1740693251380,0.0553953,137.26,137.21,7.297]
[1740693251583,7.2959,137.24,137.18,0.4717]
[1740693251782,14.5858,137.3,137.18,7.2987]
[1740693251982,7.2964,137.23,137.18,7.2987]
[1740693252185,2.02428009,137.25,137.18,7.2987]
[1740693252385,1.9749,137.25,137.18,7.2987]
[1740693252687,0.05144991,137.23,137.16,1.8586]
[1740693252881,0.05144991,137.23,137.14,0.2564]
[1740693253083,7.2975,137.21,137.14,0.2564]
[1740693253286,0.04711856,137.2,137.14,0.2564]
[1740693254188,7.34501856,137.2,137.14,0.2564]
[1740693254579,7.34501856,137.2,137.16,7.2997]
[1740693254983,0.04711856,137.2,137.12,1.8586]
[1740693255189,0.04711856,137.2,137.17,7.2994]
[1740693255992,0.04711856,137.2,137.16,7.2998]
[1740693257290,0.04711856,137.2,137.12,1.8586]
[1740693257794,0.04711856,137.2,137.17,7.2992]
[1740693258894,0.04711856,137.2,137.18,7.2989]
[1740693259492,0.04711856,137.2,137.17,7.2993]
[1740693260094,0.04711856,137.2,137.19,7.2984]
[1740693260988,0.04711856,137.2,137.17,7.2991]
[1740693261991,0.04711856,137.2,137.14,7.3009]
[1740693262294,0.04711856,137.2,137.12,1.8586]
[1740693263393,0.04711856,137.2,137.19,7.2984]
[1740693271002,0.04711856,137.2,137.18,7.2988]
[1740693271404,0.04711856,137.2,137.12,1.8586]
[1740693271605,0.04711856,137.2,137.19,7.2984]
[1740693277614,1.9749,137.25,137.23,7.296]
[1740693277615,7.2955,137.25,137.23,7.296]
[1740693278010,7.2955,137.25,137.22,7.2966]
[1740693278210,7.2961,137.24,137.15,12.04]
[1740693278714,7.2961,137.24,137.21,7.2971]
[1740693279214,7.35008961,137.24,137.21,7.34421856]
[1740693279915,7.2968,137.22,137.21,0.04711856]
[1740693286419,7.2968,137.22,137.21,20.04711856]
[1740693290418,0.05398961,137.24,137.23,7.2963]
[1740693290719,0.05398961,137.24,137.21,20.04711856]
[1740693290918,0.05398961,137.24,137.21,27.34401856]
[1740693291821,0.05398961,137.24,137.21,20.04711856]
[1740693292022,0.05398961,137.24,137.22,7.2968]
[1740693292417,7.34978961,137.24,137.21,20.04711856]
[1740693292619,0.05398961,137.24,137.21,20.04711856]
[1740693293120,0.05398961,137.24,137.22,7.2965]
[1740693293520,0.05398961,137.24,137.23,7.2963]
[1740693294419,0.05398961,137.24,137.21,20.04711856]
[1740693296426,0.05398961,137.24,137.22,7.2965]
[1740693297527,7.34978961,137.24,137.21,20.04711856]
[1740693297725,0.05398961,137.24,137.21,20.04711856]
[1740693298123,7.2966,137.23,137.21,20.04711856]
[1740693298823,7.2968,137.22,137.21,4.69511856]
[1740693299328,1.8887,137.23,137.21,4.69511856]
[1740693299527,9.1853,137.23,137.21,4.69511856]
[1740693299731,7.2966,137.23,137.21,4.69511856]
[1740693300530,7.2968,137.22,137.21,4.69511856]
[1740693307131,7.2968,137.22,137.21,1.856e-05]
[1740693307332,7.2968,137.22,137.13,0.6846]
[1740693307333,21.86,137.22,137.13,0.6846]
[1740693307627,1.9897,137.21,137.13,7.9858]
[1740693307832,7.34587397,137.19,137.13,0.6846]
[1740693308034,0.04697397,137.19,137.13,0.6846]
[1740693308335,7.2992,137.18,137.13,0.6846]
[1740693309039,0.04697397,137.19,137.09,1.9587]
[1740693309236,1.9897,137.21,137.09,1.9587]
[1740693309530,0.05599649,137.15,137.09,1.9587]
[1740693310437,7.35659649,137.15,137.12,7.3022]
[1740693310935,0.05599649,137.15,137.12,7.3022]
[1740693311136,0.05599649,137.15,137.09,1.9587]
[1740693311834,0.05599649,137.15,137.14,7.3011]
[1740693312327,28.64340714,137.2,137.09,1.9587]
[1740693312533,28.64340714,137.2,137.17,7.299]
[1740693313433,28.69100765,137.2,137.17,0.05111899]
[1740693313830,7.299,137.18,137.17,0.05111899]
[1740693314833,7.2987,137.19,137.17,0.05111899]
[1740693315040,0.04760051,137.2,137.17,7.35061899]
[1740693315439,7.34580051,137.2,137.17,7.35061899]
[1740693315734,7.34580051,137.2,137.17,0.05111899]
[1740693316340,7.2988,137.19,137.17,0.05111899]
[1740693316841,0.04760051,137.2,137.17,0.05111899]
[1740693317041,7.299,137.18,137.17,0.05111899]
[1740693320642,7.34570051,137.2,137.17,0.05111899]
[1740693320842,0.04760051,137.2,137.17,0.05111899]
[1740693321040,0.04760051,137.2,137.19,7.2984]
[1740693321340,0.04760051,137.2,137.17,0.05111899]
[1740693321842,0.04760051,137.2,137.18,7.2987]
[1740693322241,0.04760051,137.2,137.17,0.05111899]
[1740693322437,7.2988,137.19,137.17,0.05111899]
[1740693322833,7.299,137.18,137.17,0.05111899]
[1740693323242,0.04760051,137.2,137.17,0.05111899]
[1740693324341,7.34580051,137.2,137.17,7.35031899]
[1740693325343,7.299,137.18,137.17,0.05111899]
[1740693325542,0.04760051,137.2,137.17,0.05111899]
[1740693326438,7.2987,137.19,137.17,0.05111899]
[1740693328645,7.34580051,137.2,137.17,0.05111899]
[1740693329249,7.34580051,137.2,137.17,7.35021899]
[1740693331042,7.299,137.18,137.17,0.05111899]
[1740693332551,0.04760051,137.2,137.17,0.05111899]
[1740693333250,7.2985,137.19,137.17,0.05111899]
[1740693333645,7.34580051,137.2,137.17,7.35021899]
[1740693334051,0.04760051,137.2,137.17,0.05111899]
[1740693334352,0.04760051,137.2,137.19,7.2984]
[1740693334545,40.11481723,137.24,137.18,5.7429]
[1740693334741,40.11481723,137.24,137.22,7.2966]
[1740693334946,40.11481723,137.23,137.22,7.2966]
[1740693335548,40.11481723,137.23,137.21,7.2972]
[1740693335750,40.11481723,137.23,137.21,7.34732788]
[1740693336646,40.11481723,137.23,137.21,0.05012788]
[1740693336950,7.2968,137.22,137.21,0.05012788]
[1740693338548,40.11481723,137.23,137.21,0.05012788]
[1740693338850,7.2967,137.23,137.21,0.05012788]
[1740693340157,0.05181986,137.24,137.21,0.05012788]
[1740693340854,0.05181986,137.24,137.23,7.2963]
[1740693341455,0.05181986,137.24,137.22,7.2966]
[1740693341657,0.05181986,137.24,137.21,0.05012788]
[1740693342053,7.34801986,137.24,137.21,7.34732788]
[1740693342355,7.34801986,137.24,137.21,0.05012788]
[1740693343756,7.2963,137.23,137.21,0.05012788]
[1740693344057,0.05181986,137.24,137.21,7.34712788]
[1740693344553,0.05181986,137.24,137.22,7.2965]
[1740693345556,0.05181986,137.24,137.21,0.05012788]
[1740693346153,7.2966,137.23,137.21,0.05012788]
[1740693347049,0.05181986,137.24,137.21,0.05012788]
[1740693347656,0.05181986,137.24,137.22,7.2968]
[1740693347857,0.05181986,137.24,137.21,0.05012788]
[1740693349460,0.05181986,137.24,137.23,7.2963]
[1740693350454,10.03343686,137.28,137.25,7.2949]
[1740693350654,10.03343686,137.28,137.23,1.9635]
[1740693351060,17.32733686,137.28,137.23,1.9635]
[1740693351857,0.04641954,137.27,137.26,7.2947]
[1740693356663,42.08031723,137.36,137.24,1.93215873]
[1740693356867,7.2907,137.34,137.24,1.8823]
[1740693357070,7.2907,137.34,137.31,7.2917]
[1740693357272,42.08031723,137.36,137.24,1.8823]
[1740693357472,7.2903,137.35,137.24,1.8823]
[1740693357672,40.11481723,137.36,137.35,7.2899]
[1740693358073,10.03343686,137.36,137.35,7.2899]
[1740693359171,10.03343686,137.36,137.34,7.34547605]
[1740693359374,10.03343686,137.36,137.34,0.05517605]
[1740693359674,10.03343686,137.36,137.35,7.2899]
[1740693359873,10.03343686,137.36,137.34,0.05517605]
[1740693360278,0.04915058,137.37,137.35,7.2899]
[1740693360478,0.04915058,137.37,137.34,0.05517605]
[1740693360975,7.2899,137.35,137.34,0.05517605]
[1740693363070,1.90265058,137.37,137.34,0.05517605]
[1740693363275,9.19175058,137.37,137.34,0.05517605]
[1740693363577,9.19175058,137.37,137.34,7.34557605]
[1740693364078,0.04915058,137.37,137.35,7.2899]
[1740693364378,0.04915058,137.37,137.34,0.05517605]
[1740693364577,0.04915058,137.37,137.35,7.2899]
[1740693365173,0.04915058,137.37,137.34,7.34537605]
[1740693365475,0.04915058,137.37,137.34,0.05517605]
[1740693366678,7.33825058,137.37,137.34,0.05517605]
[1740693366877,0.04915058,137.37,137.34,0.05517605]
[1740693367279,7.2899,137.35,137.34,0.05517605]
[1740693368175,0.04915058,137.37,137.34,0.05517605]
[1740693369381,7.33805058,137.37,137.34,7.34537605]
[1740693369682,0.04915058,137.37,137.34,0.05517605]
[1740693369882,0.04915058,137.37,137.35,7.2896]
[1740693370180,0.04915058,137.37,137.34,0.05517605]
[1740693370782,0.04915058,137.37,137.35,7.2897]
[1740693370986,0.04915058,137.37,137.34,0.05517605]
[1740693371280,7.33805058,137.37,137.34,0.05517605]
[1740693371677,0.04915058,137.37,137.34,0.05517605]
[1740693371876,0.04915058,137.37,137.35,7.2899]
[1740693372179,0.04915058,137.37,137.34,0.05517605]
[1740693372882,0.04915058,137.37,137.36,7.2894]
[1740693373882,0.04915058,137.37,137.34,0.05517605]
[1740693374076,7.33835058,137.37,137.34,0.05517605]
[1740693375082,0.04915058,137.37,137.36,7.2894]
[1740693377477,5.058e-05,137.37,137.36,7.2894]
[1740693377882,5.058e-05,137.37,137.36,9.3265]
[1740693379482,5.058e-05,137.37,137.36,31.1665]
[1740693383885,7.2827,137.49,137.37,14.5777]
[1740693384480,7.2827,137.49,137.46,7.284]
[1740693385083,7.33460307,137.49,137.46,7.33295732]
[1740693386482,0.05190307,137.49,137.46,0.04895732]
[1740693387478,0.05190307,137.49,137.47,7.2836]
[1740693387684,0.05190307,137.49,137.46,0.04895732]
[1740693387884,0.05190307,137.49,137.42,7.286]
[1740693388080,11.98,137.51,137.42,7.286]
[1740693388484,7.2849,137.45,137.42,7.286]
[1740693388685,33.86,137.51,137.4,7.2869]
[1740693389182,7.286,137.43,137.4,7.2869]
[1740693389383,33.86,137.51,137.44,0.05483756]
[1740693389577,33.86,137.51,137.36,2.0371]
[1740693389578,0.05370504,137.43,137.36,2.0371]
[1740693389774,1.8824,137.46,137.36,2.0371]
[1740693389976,0.05014417,137.41,137.38,0.05365508]
[1740693390481,0.05014417,137.41,137.4,7.2873]
[1740693394288,0.05014417,137.41,137.38,0.05365508]
[1740693395282,7.2874,137.4,137.38,0.05365508]
[1740693397590,7.2878,137.39,137.38,0.05365508]
[1740693398492,1.9734,137.4,137.32,1.8808]
[1740693398688,2.0208,137.38,137.28,3.9123]
[1740693399087,2.0208,137.38,137.29,7.293]
[1740693399088,7.2916,137.32,137.29,7.293]
[1740693399289,2.0208,137.38,137.28,2.0133]
[1740693399795,0.05239579,137.34,137.32,0.05430981]
[1740693400184,0.05239579,137.34,137.24,3.9249]
[1740693400394,11.98,137.37,137.24,3.9249]
[1740693401093,7.2922,137.31,137.26,7.2944]
[1740693401287,7.2922,137.31,137.29,0.04912372]
[1740693401689,0.05393566,137.32,137.23,76.96951954]
[1740693401993,1.8612,137.3,137.23,76.96951954]
[1740693402190,7.2933,137.29,137.24,7.2957]
[1740693402894,0.05189125,137.28,137.25,0.04494105]
[1740693403091,7.2943,137.27,137.25,0.04494105]
[1740693403595,7.2943,137.27,137.19,4.007]
[1740693403596,7.2956,137.25,137.19,7.2981]
[1740693403795,2.0099,137.27,137.15,2.0235]
[1740693404185,7.295,137.26,137.2,7.2975]
[1740693404585,2.0099,137.27,137.2,7.2975]
[1740693404787,2.0099,137.27,137.15,2.0235]
[1740693404991,0.04895378,137.25,137.15,2.0235]
[1740693405285,2.0099,137.27,137.24,7.2957]
[1740693405590,2.06510597,137.27,137.15,2.0235]
[1740693405790,2.0099,137.27,137.25,7.2949]
[1740693406097,3.991e-05,137.22,137.15,2.0235]
[1740693406291,1.8612,137.3,137.15,2.0235]
[1740693406487,1.8612,137.3,137.16,14.5998]
[1740693407196,1.8612,137.3,137.26,7.2942]
[1740693407598,1.8612,137.3,137.19,11.98]
[1740693407791,7.34646095,137.29,137.27,0.0519]
[1740693407998,0.05455607,137.29,137.2,3.9303]
[1740693408191,0.05455607,137.29,137.14,88.99169498]
[1740693408392,1.8612,137.3,137.16,3.9303]
[1740693408801,7.2963,137.23,137.18,7.2985]
[1740693409096,1.9285,137.29,137.14,77.01169498]
[1740693409300,7.2978,137.21,137.16,7.2997]
[1740693409500,0.05400435,137.22,137.14,77.01169498]
[1740693409699,1.8909,137.25,137.14,77.01169498]
[1740693409902,0.05501768,137.19,137.16,7.2997]
[1740693410102,1.8909,137.25,137.16,7.2997]
[1740693410401,0.0509007,137.19,137.16,7.2997]
[1740693410706,7.2977,137.21,137.16,7.2997]
[1740693411003,0.04647984,137.2,137.16,7.2997]
[1740693411497,0.04647984,137.2,137.12,2.40797589]
[1740693412601,0.04647984,137.2,137.19,7.2984]
[1740693413804,7.984e-05,137.2,137.19,7.2984]
[1740693415206,7.984e-05,137.2,137.19,29.1584]
[1740693415702,7.984e-05,137.2,137.19,31.1429]
[1740693420702,7.984e-05,137.2,137.19,9.2829]
[1740693421102,7.984e-05,137.2,137.19,7.2984]
[1740693428018,7.984e-05,137.2,137.18,7.34700463]
[1740693430014,7.2984,137.19,137.18,0.04820463]
[1740693430219,7.984e-05,137.2,137.12,0.51087589]
[1740693430419,1.32423877,137.26,137.11,1.9076]
[1740693430615,7.2986,137.19,137.16,7.2997]
[1740693431316,7.35193004,137.19,137.16,7.2997]
[1740693431514,7.2992,137.18,137.15,7.3004]
[1740693431717,0.05333004,137.19,137.11,1.9076]
[1740693432017,0.04839527,137.16,137.11,1.9076]
[1740693432325,7.3003,137.16,137.13,7.3014]
[1740693432516,0.04835842,137.15,137.13,7.3014]
[1740693432715,1.9128,137.23,137.11,1.9076]
[1740693432915,0.05297026,137.15,137.11,1.9076]
[1740693433119,1.9128,137.23,137.11,1.9076]
[1740693433321,0.04622523,137.14,137.11,1.9076]
[1740693433527,1.9128,137.23,137.11,1.9076]
[1740693433722,0.05329718,137.14,137.11,1.9076]
[1740693434022,0.05031617,137.14,137.11,1.9076]
[1740693434420,0.05031617,137.14,137.13,7.3012]
[1740693438330,0.05031617,137.14,137.12,7.3021]
[1740693438524,0.05031617,137.14,137.08,1.8658]
[1740693438926,0.05031617,137.14,137.04,1.9817]
[1740693439228,21.88,137.18,137.04,1.9817]
[1740693439423,0.05275758,137.1,137.04,1.9817]
[1740693439622,7.304,137.09,137.04,1.9817]
[1740693440025,0.04674062,137.08,137.06,7.305]
[1740693440726,0.04674062,137.08,137.07,7.3048]
[1740693441128,0.04674062,137.08,137.04,1.9817]
[1740693441327,0.04674062,137.08,137.06,7.3053]
[1740693441527,0.04674062,137.08,137.04,1.9817]
[1740693441729,7.3009,137.15,137.11,7.3026]
[1740693441926,40.11481723,137.18,137.07,11.98]
[1740693442127,40.11481723,137.18,137.08,1.9921]
[1740693442828,40.11481723,137.18,137.17,7.2995]
[1740693443228,40.11481723,137.18,137.08,1.9921]
[1740693443427,40.11481723,137.18,137.16,0.04674062]
[1740693443628,0.05582577,137.14,137.08,1.9921]
[1740693443823,40.11481723,137.18,137.08,1.9921]
[1740693444028,40.11481723,137.18,137.1,0.04674062]
[1740693444428,40.11481723,137.18,137.17,7.2995]
[1740693444634,31.94343686,137.25,137.11,2.0268]
[1740693444835,3.9149,137.21,137.11,2.0268]
[1740693445033,7.299,137.18,137.17,0.04674442]
[1740693445234,0.05399211,137.19,137.17,0.04674442]
[1740693446231,7.299,137.18,137.17,0.04674442]
[1740693450134,7.35269211,137.19,137.17,0.04674442]
[1740693450436,0.05399211,137.19,137.17,0.04674442]
[1740693450842,0.05399211,137.19,137.18,7.299]
[1740693451343,0.05399211,137.19,137.17,0.04674442]
[1740693453143,0.05399211,137.19,137.18,7.299]
[1740693462243,32.01838037,137.27,137.22,7.2964]
[1740693462244,42.05181723,137.27,137.22,7.2964]
[1740693462652,7.2953,137.25,137.16,3.7629]
[1740693462950,42.05181723,137.27,137.23,7.2962]
[1740693463352,7.35065065,137.26,137.24,0.0521486]
[1740693463853,0.05565065,137.26,137.24,0.0521486]
[1740693464157,0.05565065,137.26,137.24,7.3476486]
[1740693467049,0.05565065,137.26,137.25,7.2952]
[1740693468753,5.065e-05,137.26,137.25,7.2952]
[1740693470653,5.065e-05,137.26,137.25,13.1581]
[1740693476148,5.065e-05,137.26,137.25,35.0181]
[1740693476349,5.065e-05,137.26,137.25,46.9981]
[1740693478260,5.065e-05,137.26,137.25,25.1381]
[1740693478961,5.065e-05,137.26,137.25,13.1581]
[1740693480262,5.065e-05,137.26,137.24,0.0521486]
[1740693480854,7.29525065,137.26,137.24,0.0521486]
[1740693481054,5.065e-05,137.26,137.24,0.0521486]
[1740693481355,7.29495065,137.26,137.24,0.0521486]
[1740693481859,5.065e-05,137.26,137.24,0.0521486]
[1740693482060,7.2952,137.25,137.24,0.0521486]
[1740693482259,5.065e-05,137.26,137.24,0.0521486]
[1740693482757,5.065e-05,137.26,137.25,7.2952]
[1740693484355,5.065e-05,137.26,137.24,0.0521486]
[1740693485056,5.065e-05,137.26,137.25,7.2952]
[1740693485860,5.065e-05,137.26,137.24,7.3476486]
[1740693486161,5.065e-05,137.26,137.24,0.0521486]
[1740693486854,7.2952,137.25,137.24,0.0521486]
[1740693487165,5.065e-05,137.26,137.24,0.0521486]
[1740693487661,5.065e-05,137.26,137.24,7.3476486]
[1740693488063,7.29485065,137.26,137.24,7.3476486]
[1740693488364,5.065e-05,137.26,137.24,0.0521486]
[1740693488559,7.2952,137.25,137.24,0.0521486]
[1740693488757,5.065e-05,137.26,137.15,5.7343]
[1740693489061,1.3238208,137.31,137.15,5.7343]
[1740693489662,11.96,137.32,137.15,5.7343]
[1740693489855,0.05549859,137.24,137.22,0.05175506]
[1740693490057,7.2953,137.25,137.22,7.2965]
[1740693490359,0.05469712,137.24,137.22,7.34424249]
[1740693491066,7.35049712,137.24,137.22,7.34424249]
[1740693491265,7.35049712,137.24,137.22,0.04774249]
[1740693491266,0.05469712,137.24,137.22,0.04774249]
[1740693491666,7.2963,137.23,137.22,0.04774249]
[1740693493465,7.2963,137.23,137.2,7.2976]
[1740693493466,0.05469712,137.24,137.15,5.7343]
[1740693493670,7.2985,137.19,137.14,77.00076355]
[1740693493967,11.96,137.25,137.14,77.00076355]
[1740693494163,3.9347,137.24,137.14,77.00076355]
[1740693494558,3.9347,137.24,137.16,7.2996]
[1740693494770,7.34729045,137.2,137.18,0.04875897]
[1740693496265,0.04909045,137.2,137.18,0.04875897]
[1740693496865,0.04909045,137.2,137.18,7.34745897]
[1740693497771,0.04909045,137.2,137.19,7.2984]
[1740693498768,9.045e-05,137.2,137.19,7.2984]
[1740693500162,9.045e-05,137.2,137.18,0.04875897]
[1740693500361,9.045e-05,137.2,137.18,7.34735897]
[1740693501273,9.045e-05,137.2,137.18,0.04875897]